[Event "Early-Titled-Tuesday-Blitz-March-19-2024"]
[Site "Chess.com"]
[Date "2024.03.19"]
[Round "6"]
[White "Gabix_94"]
[Black "Jojo_898"]
[Result "1-0"]
[WhiteElo "2750"]
[BlackElo "2476"]
[TimeControl "180+1"]
[EndTime "9:07:25 PDT"]
[Termination "Gabix_94 won by resignation"]

1. d4 {[%clk 0:02:05.4]} 1... Nf6 {[%clk 0:02:53.2]} 2. Nc3 {[%clk 0:02:05.9]}
2... g6 {[%clk 0:02:50.3]} 3. e4 {[%clk 0:02:05.4]} 3... d6 {[%clk 0:02:50.3]}
4. Bf4 {[%clk 0:02:05.1]} 4... Bg7 {[%clk 0:02:50.5]} 5. Qd2 {[%clk 0:02:05.4]}
5... h5 {[%clk 0:02:50.9]} 6. O-O-O {[%clk 0:02:04.9]} 6... c6 {[%clk
0:02:51.6]} 7. e5 {[%clk 0:02:02.4]} 7... dxe5 {[%clk 0:02:48.5]} 8. dxe5 {[%clk
0:02:03.3]} 8... Qxd2+ {[%clk 0:02:48.2]} 9. Rxd2 {[%clk 0:02:04.2]} 9... Nfd7
{[%clk 0:02:48.7]} 10. Nf3 {[%clk 0:02:01.6]} 10... O-O {[%clk 0:02:47]} 11. Bc4
{[%clk 0:01:56.7]} 11... Nb6 {[%clk 0:02:44.4]} 12. Bb3 {[%clk 0:01:54]} 12...
Bg4 {[%clk 0:02:44.9]} 13. Ng5 {[%clk 0:01:51.7]} 13... e6 {[%clk 0:02:34.2]}
14. h3 {[%clk 0:01:48.7]} 14... Bf5 {[%clk 0:02:33.6]} 15. f3 {[%clk 0:01:45.2]}
15... h4 {[%clk 0:02:30]} 16. Rhd1 {[%clk 0:01:40]} 16... Na6 {[%clk 0:02:21.9]}
17. Nce4 {[%clk 0:01:38]} 17... Bxe4 {[%clk 0:02:17.9]} 18. fxe4 {[%clk
0:01:38.9]} 18... Nc5 {[%clk 0:02:14]} 19. Bh2 {[%clk 0:01:30.1]} 19... Bh6
{[%clk 0:02:13.5]} 20. Bf4 {[%clk 0:01:20.5]} 20... Bxg5 {[%clk 0:02:13.1]} 21.
Bxg5 {[%clk 0:01:21.4]} 21... Nxe4 {[%clk 0:02:13.7]} 22. Bxh4 {[%clk
0:01:21.6]} 22... Nxd2 {[%clk 0:02:13.7]} 23. Rxd2 {[%clk 0:01:22.5]} 23... Nd5
{[%clk 0:02:12.7]} 24. c4 {[%clk 0:01:21]} 24... Nf4 {[%clk 0:02:03.2]} 25. Bg5
{[%clk 0:01:20.6]} 25... Nh5 {[%clk 0:02:03]} 26. g4 {[%clk 0:01:19.2]} 26...
Ng7 {[%clk 0:02:02.2]} 27. Rd7 {[%clk 0:01:18.4]} 27... Rab8 {[%clk 0:02:00.3]}
28. Bc2 {[%clk 0:01:16.8]} 28... Ne8 {[%clk 0:01:58.9]} 29. b3 {[%clk 0:01:13]}
29... Kg7 {[%clk 0:01:58.7]} 30. Kb2 {[%clk 0:01:10.8]} 30... Rh8 {[%clk
0:01:58.6]} 31. h4 {[%clk 0:01:10.7]} 31... b5 {[%clk 0:01:50.6]} 32. c5 {[%clk
0:01:07.6]} 32... b4 {[%clk 0:01:50.9]} 33. Bd3 {[%clk 0:01:06.9]} 33... a5
{[%clk 0:01:50.4]} 34. Kc2 {[%clk 0:01:06.1]} 34... Ra8 {[%clk 0:01:48.4]} 35.
Bc4 {[%clk 0:01:05.9]} 35... Kg8 {[%clk 0:01:46.2]} 36. Kd3 {[%clk 0:01:04]}
36... a4 {[%clk 0:01:46.4]} 37. Ke4 {[%clk 0:01:01.7]} 37... axb3 {[%clk
0:01:46.3]} 38. axb3 {[%clk 0:01:02.5]} 38... Rh7 {[%clk 0:01:43.6]} 39. Rb7
{[%clk 0:01:00.4]} 39... f5+ {[%clk 0:01:43]} 40. exf6 {[%clk 0:00:56.3]} 40...
Rxb7 {[%clk 0:01:42.9]} 41. Bxe6+ {[%clk 0:00:57]} 41... Kh8 {[%clk 0:01:40.9]}
42. Ke5 {[%clk 0:00:52.7]} 42... Nc7 {[%clk 0:01:31.5]} 43. Bd7 {[%clk
0:00:51.1]} 43... Ra1 {[%clk 0:01:16.5]} 44. Bxc6 {[%clk 0:00:49.8]} 44... Rb8
{[%clk 0:01:11.6]} 45. Kd6 {[%clk 0:00:47.4]} 45... Ne8+ {[%clk 0:01:09.4]} 46.
Ke7 {[%clk 0:00:46.3]} 46... Re1+ {[%clk 0:01:09.5]} 47. Kf7 {[%clk 0:00:46.8]}
47... Rc8 {[%clk 0:01:02.6]} 48. Bd7 {[%clk 0:00:43.1]} 48... Rc7 {[%clk
0:00:32.7]} 49. c6 {[%clk 0:00:42]} 49... Nd6+ {[%clk 0:00:33.3]} 50. Kxg6
{[%clk 0:00:42.1]} 50... Kg8 {[%clk 0:00:31.6]} 51. Bf4 {[%clk 0:00:38.4]} 51...
Rd1 {[%clk 0:00:28.3]} 52. h5 {[%clk 0:00:35]} 52... Rd4 {[%clk 0:00:28]} 53.
Be5 {[%clk 0:00:35.3]} 53... Rxg4+ {[%clk 0:00:27.8]} 54. Bxg4 {[%clk
0:00:35.1]} 54... Rxc6 {[%clk 0:00:26.7]} 55. Be6+ {[%clk 0:00:35.4]} 55... Kf8
{[%clk 0:00:26.1]} 56. Bd5 {[%clk 0:00:35.4]} 56... Rb6 {[%clk 0:00:25.8]} 57.
h6 {[%clk 0:00:35.5]} 1-0

[Event "Early-Titled-Tuesday-Blitz-March-19-2024"]
[Site "Chess.com"]
[Date "2024.03.19"]
[Round "6"]
[White "vugarrasulov"]
[Black "moro182"]
[Result "0-1"]
[WhiteElo "2973"]
[BlackElo "2850"]
[TimeControl "180+1"]
[EndTime "9:07:26 PDT"]
[Termination "moro182 won on time"]

1. d4 {[%clk 0:03:00.9]} 1... g6 {[%clk 0:03:00.9]} 2. c4 {[%clk 0:03:00.8]}
2... Bg7 {[%clk 0:03:01.8]} 3. Nc3 {[%clk 0:03:01.3]} 3... d6 {[%clk 0:03:02.5]}
4. Nf3 {[%clk 0:03:01]} 4... Nc6 {[%clk 0:03:01.5]} 5. h3 {[%clk 0:02:56.5]}
5... e5 {[%clk 0:03:01.1]} 6. Bg5 {[%clk 0:02:53.3]} 6... Qd7 {[%clk 0:02:53.8]}
7. d5 {[%clk 0:02:51]} 7... Nce7 {[%clk 0:02:47.4]} 8. e4 {[%clk 0:02:51.2]}
8... h6 {[%clk 0:02:47.6]} 9. Bxe7 {[%clk 0:02:46.8]} 9... Qxe7 {[%clk
0:02:35.5]} 10. c5 {[%clk 0:02:37.3]} 10... dxc5 {[%clk 0:02:33.3]} 11. Bb5+
{[%clk 0:02:35.5]} 11... Kf8 {[%clk 0:02:30.3]} 12. O-O {[%clk 0:02:31.2]} 12...
Nf6 {[%clk 0:02:28.1]} 13. Rc1 {[%clk 0:02:30.6]} 13... h5 {[%clk 0:02:22]} 14.
a4 {[%clk 0:02:20.2]} 14... Bh6 {[%clk 0:02:20]} 15. Rc2 {[%clk 0:02:20.4]}
15... Kg7 {[%clk 0:02:20.2]} 16. a5 {[%clk 0:02:17.9]} 16... Rd8 {[%clk
0:02:16.9]} 17. Bd3 {[%clk 0:02:07.2]} 17... c6 {[%clk 0:02:08.1]} 18. dxc6
{[%clk 0:02:01]} 18... c4 {[%clk 0:02:06.5]} 19. Nd5 {[%clk 0:01:02.4]} 19...
Nxd5 {[%clk 0:02:05.7]} 20. exd5 {[%clk 0:01:03.3]} 20... cxd3 {[%clk
0:02:03.4]} 21. Rc3 {[%clk 0:00:46.5]} 21... bxc6 {[%clk 0:01:57.3]} 22. dxc6
{[%clk 0:00:45.3]} 22... e4 {[%clk 0:01:36.9]} 23. Re1 {[%clk 0:00:45.6]} 23...
Bf5 {[%clk 0:01:32.1]} 24. Nd2 {[%clk 0:00:41.8]} 24... Kh7 {[%clk 0:01:23.2]}
25. Rc4 {[%clk 0:00:35]} 25... Qe6 {[%clk 0:01:03.8]} 26. b3 {[%clk 0:00:33.1]}
26... e3 {[%clk 0:00:57.2]} 27. fxe3 {[%clk 0:00:31.1]} 27... Qd6 {[%clk
0:00:44.3]} 28. Qf3 {[%clk 0:00:27]} 28... Rac8 {[%clk 0:00:41.6]} 29. b4 {[%clk
0:00:24.9]} 29... Be6 {[%clk 0:00:37.7]} 30. Ne4 {[%clk 0:00:23.8]} 30... Qe7
{[%clk 0:00:35.1]} 31. Rc5 {[%clk 0:00:24]} 31... Kg8 {[%clk 0:00:30]} 32. b5
{[%clk 0:00:22.3]} 32... f5 {[%clk 0:00:26.9]} 33. Rc3 {[%clk 0:00:16]} 33...
fxe4 {[%clk 0:00:25.7]} 34. Qxe4 {[%clk 0:00:16.9]} 34... d2 {[%clk 0:00:24.9]}
35. Rd1 {[%clk 0:00:17.4]} 35... Qf6 {[%clk 0:00:24.6]} 36. Rd3 {[%clk
0:00:12.9]} 36... Bf5 {[%clk 0:00:24.7]} 37. Rxd8+ {[%clk 0:00:12.7]} 37... Rxd8
{[%clk 0:00:25.1]} 38. Qc4+ {[%clk 0:00:13.2]} 38... Qe6 {[%clk 0:00:25.1]} 39.
c7 {[%clk 0:00:07.9]} 39... Bxe3+ {[%clk 0:00:23]} 40. Kh1 {[%clk 0:00:07.5]}
40... Rc8 {[%clk 0:00:20.5]} 41. Qc3 {[%clk 0:00:07.2]} 41... Kh7 {[%clk
0:00:19.8]} 42. b6 {[%clk 0:00:04.9]} 42... axb6 {[%clk 0:00:20.7]} 43. a6
{[%clk 0:00:05.1]} 43... b5 {[%clk 0:00:20.3]} 44. a7 {[%clk 0:00:05]} 44...
Bxa7 {[%clk 0:00:20.4]} 45. Qxd2 {[%clk 0:00:04.1]} 45... Rxc7 {[%clk
0:00:20.3]} 46. Qd8 {[%clk 0:00:04.4]} 46... Rd7 {[%clk 0:00:19]} 0-1

[Event "Early-Titled-Tuesday-Blitz-March-19-2024"]
[Site "Chess.com"]
[Date "2024.03.19"]
[Round "6"]
[White "tptagain"]
[Black "kenta1234"]
[Result "1-0"]
[WhiteElo "2960"]
[BlackElo "2816"]
[TimeControl "180+1"]
[EndTime "9:07:27 PDT"]
[Termination "tptagain won by resignation"]

1. Nf3 {[%clk 0:03:00.9]} 1... Nf6 {[%clk 0:02:58.3]} 2. d4 {[%clk 0:03:00.8]}
2... d5 {[%clk 0:02:58.5]} 3. e3 {[%clk 0:03:00.8]} 3... e6 {[%clk 0:02:57.9]}
4. Bd3 {[%clk 0:03:00.5]} 4... c5 {[%clk 0:02:57.5]} 5. b3 {[%clk 0:03:00.6]}
5... Nc6 {[%clk 0:02:56.8]} 6. O-O {[%clk 0:03:01]} 6... Be7 {[%clk 0:02:54.4]}
7. Bb2 {[%clk 0:03:01]} 7... O-O {[%clk 0:02:54.9]} 8. dxc5 {[%clk 0:03:00.6]}
8... Bxc5 {[%clk 0:02:54.7]} 9. a3 {[%clk 0:03:01]} 9... b6 {[%clk 0:02:54.3]}
10. b4 {[%clk 0:03:00.7]} 10... Be7 {[%clk 0:02:54]} 11. Nbd2 {[%clk 0:03:00.9]}
11... Bb7 {[%clk 0:02:54]} 12. c4 {[%clk 0:03:00.8]} 12... Rc8 {[%clk
0:02:50.8]} 13. Rc1 {[%clk 0:02:58.6]} 13... Re8 {[%clk 0:02:36.6]} 14. Qe2
{[%clk 0:02:54.5]} 14... a5 {[%clk 0:02:31]} 15. b5 {[%clk 0:02:41.8]} 15... Nb8
{[%clk 0:02:31]} 16. cxd5 {[%clk 0:02:36.9]} 16... Rxc1 {[%clk 0:02:30]} 17.
Rxc1 {[%clk 0:02:36.5]} 17... Nxd5 {[%clk 0:02:23.3]} 18. Ne5 {[%clk 0:02:32]}
18... Nf6 {[%clk 0:02:11.8]} 19. Ndc4 {[%clk 0:02:21.4]} 19... Bc5 {[%clk
0:01:56.8]} 20. Rd1 {[%clk 0:02:12]} 20... Qe7 {[%clk 0:01:54.5]} 21. a4 {[%clk
0:02:08]} 21... Nbd7 {[%clk 0:01:52.3]} 22. Nxd7 {[%clk 0:02:07.4]} 22... Nxd7
{[%clk 0:01:52.1]} 23. Bxh7+ {[%clk 0:02:01.7]} 23... Kxh7 {[%clk 0:01:51.6]}
24. Qd3+ {[%clk 0:02:00.3]} 24... Kg8 {[%clk 0:01:41.9]} 25. Qxd7 {[%clk
0:01:58.9]} 25... Bd5 {[%clk 0:01:40.8]} 26. Qxe7 {[%clk 0:01:37.6]} 26... Rxe7
{[%clk 0:01:41.7]} 27. Rc1 {[%clk 0:01:36.2]} 27... f6 {[%clk 0:01:36.8]} 28. h4
{[%clk 0:01:16.5]} 28... Rc7 {[%clk 0:01:25]} 29. Nd2 {[%clk 0:01:15.5]} 29...
Bd6 {[%clk 0:01:23.8]} 30. Rxc7 {[%clk 0:01:12.9]} 30... Bxc7 {[%clk 0:01:24.7]}
31. Bd4 {[%clk 0:00:24.5]} 31... e5 {[%clk 0:01:18.9]} 32. e4 {[%clk 0:00:24.9]}
32... Ba2 {[%clk 0:00:31.7]} 33. Be3 {[%clk 0:00:24.3]} 33... Kf7 {[%clk
0:00:31.9]} 34. Kf1 {[%clk 0:00:21.6]} 34... g6 {[%clk 0:00:29.3]} 35. g4 {[%clk
0:00:20.8]} 35... Be6 {[%clk 0:00:28.4]} 36. f3 {[%clk 0:00:20.8]} 36... f5
{[%clk 0:00:28.5]} 37. gxf5 {[%clk 0:00:18.7]} 37... gxf5 {[%clk 0:00:29.4]} 38.
Ke2 {[%clk 0:00:18.2]} 38... f4 {[%clk 0:00:27.5]} 39. Bf2 {[%clk 0:00:18.3]}
39... Kf6 {[%clk 0:00:19.3]} 40. Kd3 {[%clk 0:00:18.6]} 40... Ba2 {[%clk
0:00:17.5]} 41. Kc2 {[%clk 0:00:16.3]} 41... Be6 {[%clk 0:00:16.4]} 42. Kc3
{[%clk 0:00:11.9]} 42... Ba2 {[%clk 0:00:14.3]} 43. Nc4 {[%clk 0:00:11.9]} 43...
Bxc4 {[%clk 0:00:13.3]} 44. Kxc4 {[%clk 0:00:12.2]} 44... Ke6 {[%clk 0:00:12.7]}
45. h5 {[%clk 0:00:12.5]} 45... Bd8 {[%clk 0:00:11.8]} 46. h6 {[%clk 0:00:12.4]}
46... Kd6 {[%clk 0:00:05.7]} 47. h7 {[%clk 0:00:12.3]} 47... Bf6 {[%clk
0:00:06.6]} 48. Bxb6 {[%clk 0:00:12.4]} 1-0

[Event "Early-Titled-Tuesday-Blitz-March-19-2024"]
[Site "Chess.com"]
[Date "2024.03.19"]
[Round "6"]
[White "suyu28"]
[Black "Zheenbekov86"]
[Result "1-0"]
[WhiteElo "2850"]
[BlackElo "2463"]
[TimeControl "180+1"]
[EndTime "9:07:30 PDT"]
[Termination "suyu28 won on time"]

1. c4 {[%clk 0:02:55.9]} 1... Nf6 {[%clk 0:02:58.9]} 2. d4 {[%clk 0:02:54.1]}
2... g6 {[%clk 0:02:58.8]} 3. Nc3 {[%clk 0:02:52.9]} 3... Bg7 {[%clk 0:02:59]}
4. e4 {[%clk 0:02:52.9]} 4... d6 {[%clk 0:02:59.4]} 5. h3 {[%clk 0:02:53.1]}
5... O-O {[%clk 0:02:59.7]} 6. Be3 {[%clk 0:02:53.1]} 6... e5 {[%clk 0:02:58.4]}
7. d5 {[%clk 0:02:52.9]} 7... a5 {[%clk 0:02:57.3]} 8. Nf3 {[%clk 0:02:51.1]}
8... Na6 {[%clk 0:02:57.1]} 9. g4 {[%clk 0:02:50.6]} 9... Nc5 {[%clk 0:02:53.7]}
10. Nd2 {[%clk 0:02:50.6]} 10... b6 {[%clk 0:02:51]} 11. Be2 {[%clk 0:02:49.6]}
11... Ne8 {[%clk 0:02:39.3]} 12. h4 {[%clk 0:02:41.5]} 12... h6 {[%clk
0:02:37.5]} 13. Nf1 {[%clk 0:02:37.7]} 13... f5 {[%clk 0:02:32.2]} 14. gxf5
{[%clk 0:02:37.4]} 14... gxf5 {[%clk 0:02:32.2]} 15. exf5 {[%clk 0:02:38.2]}
15... Bxf5 {[%clk 0:02:31.6]} 16. Ng3 {[%clk 0:02:38.8]} 16... Kh8 {[%clk
0:02:16]} 17. Qd2 {[%clk 0:02:36]} 17... Qf6 {[%clk 0:02:14.1]} 18. Rg1 {[%clk
0:02:20.1]} 18... Bh7 {[%clk 0:01:33.8]} 19. Nh5 {[%clk 0:02:17.2]} 19... Qf5
{[%clk 0:01:29.6]} 20. O-O-O {[%clk 0:01:36.4]} 20... a4 {[%clk 0:01:23.6]} 21.
Bxc5 {[%clk 0:01:08.4]} 21... bxc5 {[%clk 0:01:22.5]} 22. Nxg7 {[%clk
0:01:07.4]} 22... Nxg7 {[%clk 0:01:21.1]} 23. Rg2 {[%clk 0:00:56.7]} 23... Qf4
{[%clk 0:01:12.9]} 24. Rdg1 {[%clk 0:00:52.7]} 24... Qxd2+ {[%clk 0:01:12.4]}
25. Kxd2 {[%clk 0:00:53.4]} 25... Nf5 {[%clk 0:01:12.9]} 26. h5 {[%clk
0:00:49.2]} 26... Nd4 {[%clk 0:01:10.9]} 27. Bd1 {[%clk 0:00:45.8]} 27... a3
{[%clk 0:01:07.7]} 28. b3 {[%clk 0:00:43.5]} 28... Rf4 {[%clk 0:01:05.7]} 29.
Ke3 {[%clk 0:00:35.8]} 29... Raf8 {[%clk 0:01:04.6]} 30. Rh1 {[%clk 0:00:15.8]}
30... Bc2 {[%clk 0:00:42.4]} 31. Bg4 {[%clk 0:00:07.5]} 31... Bf5 {[%clk
0:00:39.5]} 32. Bd1 {[%clk 0:00:05.7]} 32... Bc2 {[%clk 0:00:38.5]} 33. Bg4
{[%clk 0:00:05.7]} 33... Bf5 {[%clk 0:00:37.7]} 34. Bd1 {[%clk 0:00:05.9]} 34...
Bh7 {[%clk 0:00:32.4]} 35. Rh3 {[%clk 0:00:05.2]} 35... Nf5+ {[%clk 0:00:00.8]}
36. Ke2 {[%clk 0:00:03.7]} 1-0

[Event "Early-Titled-Tuesday-Blitz-March-19-2024"]
[Site "Chess.com"]
[Date "2024.03.19"]
[Round "6"]
[White "Byniolus"]
[Black "sorch29"]
[Result "1-0"]
[WhiteElo "2786"]
[BlackElo "2486"]
[TimeControl "180+1"]
[EndTime "9:07:31 PDT"]
[Termination "Byniolus won on time"]

1. d4 {[%clk 0:03:00.1]} 1... Nf6 {[%clk 0:02:57.2]} 2. Nf3 {[%clk 0:02:59.5]}
2... g6 {[%clk 0:02:57.4]} 3. Bf4 {[%clk 0:02:57.7]} 3... Bg7 {[%clk 0:02:57.2]}
4. e3 {[%clk 0:02:57.1]} 4... O-O {[%clk 0:02:57.9]} 5. Be2 {[%clk 0:02:56.2]}
5... d6 {[%clk 0:02:58.4]} 6. h3 {[%clk 0:02:56]} 6... b6 {[%clk 0:02:57.4]} 7.
O-O {[%clk 0:02:55.7]} 7... Bb7 {[%clk 0:02:58.1]} 8. a4 {[%clk 0:02:56.4]} 8...
a6 {[%clk 0:02:50.4]} 9. c3 {[%clk 0:02:56.6]} 9... Nbd7 {[%clk 0:02:50.8]} 10.
Bh2 {[%clk 0:02:57]} 10... Qe8 {[%clk 0:02:50]} 11. Nbd2 {[%clk 0:02:56.4]}
11... e5 {[%clk 0:02:50]} 12. Qb3 {[%clk 0:02:56.6]} 12... a5 {[%clk 0:02:41.3]}
13. Nc4 {[%clk 0:02:54.5]} 13... Ne4 {[%clk 0:02:21.7]} 14. Na3 {[%clk
0:02:50.2]} 14... Qe7 {[%clk 0:01:57.5]} 15. Nb5 {[%clk 0:02:39.8]} 15... Rac8
{[%clk 0:01:38.3]} 16. Rac1 {[%clk 0:02:39.4]} 16... Kh8 {[%clk 0:01:01]} 17.
Rfd1 {[%clk 0:02:26.5]} 17... f5 {[%clk 0:01:00.5]} 18. Re1 {[%clk 0:02:06.2]}
18... g5 {[%clk 0:00:51.2]} 19. dxe5 {[%clk 0:01:03.8]} 19... dxe5 {[%clk
0:00:50.7]} 20. Qa3 {[%clk 0:01:04]} 20... Qxa3 {[%clk 0:00:27.7]} 21. Nxa3
{[%clk 0:01:00.7]} 21... g4 {[%clk 0:00:18.4]} 22. Nh4 {[%clk 0:00:59.5]} 22...
gxh3 {[%clk 0:00:17.1]} 23. Rcd1 {[%clk 0:00:53.5]} 23... Ndc5 {[%clk
0:00:16.8]} 24. Nc4 {[%clk 0:00:46]} 24... Rce8 {[%clk 0:00:11.4]} 25. Bh5
{[%clk 0:00:31.9]} 25... Re7 {[%clk 0:00:09.9]} 26. gxh3 {[%clk 0:00:27.6]}
26... Ng5 {[%clk 0:00:09.8]} 27. Kf1 {[%clk 0:00:21.7]} 27... Nxh3 {[%clk
0:00:09.4]} 28. Ke2 {[%clk 0:00:21.5]} 28... Ng5 {[%clk 0:00:09.5]} 29. Rg1
{[%clk 0:00:19.7]} 29... Nf7 {[%clk 0:00:06.3]} 30. Nxf5 {[%clk 0:00:18.3]}
30... Bf6 {[%clk 0:00:02.9]} 31. Nxe7 {[%clk 0:00:16.8]} 31... Bxe7 {[%clk
0:00:03.2]} 32. Nxe5 {[%clk 0:00:11.9]} 32... Nd6 {[%clk 0:00:03.5]} 33. Rxd6
{[%clk 0:00:08.1]} 33... cxd6 {[%clk 0:00:03]} 34. Nf7+ {[%clk 0:00:09]} 34...
Rxf7 {[%clk 0:00:02.6]} 35. Bxf7 {[%clk 0:00:09.9]} 35... h6 {[%clk 0:00:01.4]}
36. Rg8+ {[%clk 0:00:05]} 36... Kh7 {[%clk 0:00:02]} 37. Re8 {[%clk 0:00:05.9]}
37... Bf6 {[%clk 0:00:02.3]} 38. Bxd6 {[%clk 0:00:05.4]} 38... Bc6 {[%clk
0:00:01.4]} 39. Rc8 {[%clk 0:00:04.6]} 39... Bd7 {[%clk 0:00:01]} 40. Rc7 {[%clk
0:00:04.1]} 40... Kg7 {[%clk 0:00:01.6]} 41. Bxc5 {[%clk 0:00:03.9]} 41... Kh8
{[%clk 0:00:02.2]} 42. Rxd7 {[%clk 0:00:04.2]} 1-0

[Event "Early-Titled-Tuesday-Blitz-March-19-2024"]
[Site "Chess.com"]
[Date "2024.03.19"]
[Round "6"]
[White "PLAYER_2006_M"]
[Black "mbojan"]
[Result "1-0"]
[WhiteElo "2942"]
[BlackElo "2800"]
[TimeControl "180+1"]
[EndTime "9:07:34 PDT"]
[Termination "PLAYER_2006_M won on time"]

1. e4 {[%clk 0:03:00.9]} 1... a6 {[%clk 0:03:00.3]} 2. b3 {[%clk 0:02:50.4]}
2... d5 {[%clk 0:02:57.9]} 3. exd5 {[%clk 0:02:48.7]} 3... Qxd5 {[%clk
0:02:58.8]} 4. Bb2 {[%clk 0:02:48.5]} 4... Nf6 {[%clk 0:02:57]} 5. Nf3 {[%clk
0:02:48.6]} 5... Nc6 {[%clk 0:02:36.4]} 6. Bc4 {[%clk 0:02:46.6]} 6... Qe4+
{[%clk 0:02:34.3]} 7. Be2 {[%clk 0:02:44.7]} 7... Bf5 {[%clk 0:02:20.9]} 8. d3
{[%clk 0:02:38.7]} 8... Qd5 {[%clk 0:02:21]} 9. Nc3 {[%clk 0:02:38.5]} 9... Qd7
{[%clk 0:02:19.6]} 10. O-O {[%clk 0:02:38.3]} 10... e6 {[%clk 0:02:20]} 11. Nd2
{[%clk 0:02:20.9]} 11... Nd4 {[%clk 0:02:16.6]} 12. Nf3 {[%clk 0:02:18.1]} 12...
Bc5 {[%clk 0:02:12.5]} 13. Nxd4 {[%clk 0:02:13.9]} 13... Bxd4 {[%clk 0:02:12.1]}
14. Bf3 {[%clk 0:02:14.6]} 14... c5 {[%clk 0:01:49.7]} 15. Na4 {[%clk
0:02:07.3]} 15... Qc7 {[%clk 0:01:41]} 16. g3 {[%clk 0:01:52.8]} 16... O-O
{[%clk 0:01:38.8]} 17. Rc1 {[%clk 0:01:33.6]} 17... Bxb2 {[%clk 0:01:27.8]} 18.
Nxb2 {[%clk 0:01:34.5]} 18... Rad8 {[%clk 0:01:28.2]} 19. Nc4 {[%clk 0:01:34.5]}
19... b5 {[%clk 0:01:27.7]} 20. Ne3 {[%clk 0:01:34.7]} 20... Bg6 {[%clk
0:01:28.3]} 21. Qe1 {[%clk 0:01:29]} 21... Rd4 {[%clk 0:01:24.5]} 22. a3 {[%clk
0:01:26.9]} 22... Rfd8 {[%clk 0:01:24.2]} 23. Qc3 {[%clk 0:01:24.3]} 23... Qd6
{[%clk 0:01:24.1]} 24. Rfe1 {[%clk 0:01:23.9]} 24... h5 {[%clk 0:01:23.6]} 25.
Ng2 {[%clk 0:01:22.1]} 25... Bf5 {[%clk 0:01:20.3]} 26. Ne3 {[%clk 0:01:11.7]}
26... Bh3 {[%clk 0:01:18.5]} 27. Rb1 {[%clk 0:01:04.2]} 27... a5 {[%clk
0:01:01.6]} 28. Qxa5 {[%clk 0:01:00.2]} 28... h4 {[%clk 0:01:00.5]} 29. Qxb5
{[%clk 0:00:52.6]} 29... Nd7 {[%clk 0:00:45.6]} 30. Nc4 {[%clk 0:00:46.4]} 30...
Qe7 {[%clk 0:00:45.4]} 31. b4 {[%clk 0:00:46.7]} 31... Qf6 {[%clk 0:00:39]} 32.
Re3 {[%clk 0:00:31.1]} 32... cxb4 {[%clk 0:00:33.4]} 33. axb4 {[%clk 0:00:29.8]}
33... Nf8 {[%clk 0:00:33.8]} 34. Qe5 {[%clk 0:00:28.5]} 34... Qh6 {[%clk
0:00:32.8]} 35. b5 {[%clk 0:00:26.6]} 35... Ng6 {[%clk 0:00:33.2]} 36. Qc5
{[%clk 0:00:24.4]} 36... R4d5 {[%clk 0:00:30.2]} 37. Bxd5 {[%clk 0:00:19.7]}
37... Rxd5 {[%clk 0:00:31.1]} 38. Qc8+ {[%clk 0:00:20.1]} 38... Kh7 {[%clk
0:00:31.7]} 39. b6 {[%clk 0:00:20.5]} 39... hxg3 {[%clk 0:00:31.1]} 40. fxg3
{[%clk 0:00:17.4]} 40... Rd4 {[%clk 0:00:27.1]} 41. Qc5 {[%clk 0:00:15.8]} 41...
e5 {[%clk 0:00:04.9]} 42. b7 {[%clk 0:00:14.2]} 42... Be6 {[%clk 0:00:05.6]} 43.
Rxe5 {[%clk 0:00:11.1]} 43... Rxc4 {[%clk 0:00:01.8]} 44. dxc4 {[%clk
0:00:10.1]} 44... Nxe5 {[%clk 0:00:01.8]} 45. Qxe5 {[%clk 0:00:10.8]} 1-0

[Event "Early-Titled-Tuesday-Blitz-March-19-2024"]
[Site "Chess.com"]
[Date "2024.03.19"]
[Round "6"]
[White "secrethawk1"]
[Black "ritanovikova"]
[Result "0-1"]
[WhiteElo "2421"]
[BlackElo "2234"]
[TimeControl "180+1"]
[EndTime "9:07:37 PDT"]
[Termination "ritanovikova won on time"]

1. e4 {[%clk 0:03:00.9]} 1... e5 {[%clk 0:02:44.9]} 2. Nf3 {[%clk 0:03:00.6]}
2... Nf6 {[%clk 0:02:41.6]} 3. Nxe5 {[%clk 0:03:00]} 3... d6 {[%clk 0:02:41.4]}
4. Nc4 {[%clk 0:02:59.7]} 4... Nxe4 {[%clk 0:02:41.3]} 5. Qe2 {[%clk 0:03:00.3]}
5... d5 {[%clk 0:02:40.1]} 6. Ne3 {[%clk 0:03:00.9]} 6... Be7 {[%clk 0:02:36]}
7. c3 {[%clk 0:02:57.3]} 7... O-O {[%clk 0:02:35.6]} 8. d3 {[%clk 0:02:54]} 8...
Nf6 {[%clk 0:02:34.8]} 9. d4 {[%clk 0:02:54.7]} 9... b6 {[%clk 0:02:32.8]} 10.
Qd1 {[%clk 0:02:54.5]} 10... Ba6 {[%clk 0:02:31]} 11. Bd3 {[%clk 0:02:55.4]}
11... Bxd3 {[%clk 0:02:30.9]} 12. Qxd3 {[%clk 0:02:56.2]} 12... c5 {[%clk
0:02:30.6]} 13. O-O {[%clk 0:02:57.1]} 13... c4 {[%clk 0:02:24.9]} 14. Qe2
{[%clk 0:02:54.6]} 14... Nc6 {[%clk 0:02:22.7]} 15. Nd2 {[%clk 0:02:53.6]} 15...
Bd6 {[%clk 0:02:21.8]} 16. h3 {[%clk 0:02:50.5]} 16... Bc7 {[%clk 0:02:19.2]}
17. f4 {[%clk 0:02:44.1]} 17... Re8 {[%clk 0:02:17.1]} 18. Qf3 {[%clk
0:02:41.1]} 18... Qd6 {[%clk 0:02:12.9]} 19. Nf5 {[%clk 0:02:27.5]} 19... Qd7
{[%clk 0:02:10.5]} 20. g4 {[%clk 0:02:22.8]} 20... h5 {[%clk 0:01:55.1]} 21. Rd1
{[%clk 0:02:02.9]} 21... hxg4 {[%clk 0:01:53.1]} 22. hxg4 {[%clk 0:02:03.8]}
22... Qe6 {[%clk 0:01:52.8]} 23. Nf1 {[%clk 0:02:01.4]} 23... Qe2 {[%clk
0:01:50.2]} 24. Qxe2 {[%clk 0:01:38]} 24... Rxe2 {[%clk 0:01:51.1]} 25. N1g3
{[%clk 0:01:35.9]} 25... Ree8 {[%clk 0:01:32.9]} 26. g5 {[%clk 0:01:10.9]} 26...
Ne4 {[%clk 0:01:28.9]} 27. Nxe4 {[%clk 0:01:02.4]} 27... Rxe4 {[%clk 0:01:27.5]}
28. Ng3 {[%clk 0:00:58.9]} 28... Ree8 {[%clk 0:01:25.9]} 29. Kf2 {[%clk
0:00:56.3]} 29... g6 {[%clk 0:01:24]} 30. Rh1 {[%clk 0:00:53.7]} 30... Kg7
{[%clk 0:01:23.1]} 31. b3 {[%clk 0:00:48.7]} 31... b5 {[%clk 0:01:22.6]} 32. Bd2
{[%clk 0:00:47]} 32... f6 {[%clk 0:01:12]} 33. gxf6+ {[%clk 0:00:42.6]} 33...
Kxf6 {[%clk 0:01:12.9]} 34. Rh7 {[%clk 0:00:38.3]} 34... Re7 {[%clk 0:01:13.3]}
35. Rh6 {[%clk 0:00:37.2]} 35... Rae8 {[%clk 0:00:44]} 36. Rah1 {[%clk
0:00:23.7]} 36... Nd8 {[%clk 0:00:42.2]} 37. Nh5+ {[%clk 0:00:16.2]} 37... Kf5
{[%clk 0:00:35.3]} 38. Ng3+ {[%clk 0:00:07.2]} 38... Kf6 {[%clk 0:00:33.7]} 39.
Kf3 {[%clk 0:00:04.8]} 39... Nf7 {[%clk 0:00:30]} 40. Rh7 {[%clk 0:00:03]} 40...
Ke6 {[%clk 0:00:19.8]} 41. Re1+ {[%clk 0:00:01.1]} 41... Kd7 {[%clk 0:00:19.8]}
42. Rxe7+ {[%clk 0:00:02]} 42... Rxe7 {[%clk 0:00:20.7]} 43. Rh8 {[%clk
0:00:01.1]} 43... Nd6 {[%clk 0:00:19.5]} 0-1